fUST/lending_fUST_20260117
["ID","MTS","AMOUNT","RATE_DAILY","PERIOD"]
[402189342,1768579838368,-406.70026036,0.000153,2]
[402189344,1768579838378,-641.0,0.000153,2]
[402189346,1768579838388,-264.53231125,0.00015325,2]
[402189348,1768579838397,-170.90662532,0.000154,2]
[402189350,1768579838406,-1000.0,0.00015886,2]
[402189352,1768579838415,-315.466034,0.00016,2]
[402189354,1768579838424,-6465.30715485,0.00016696,2]
[402189358,1768579838451,-152.3680043,0.00016696,2]
[402189360,1768579838461,-497.65476098,0.00016925,2]
[402189362,1768579838471,-367.0584844,0.00017025,2]
[402189364,1768579838481,-1041.66666667,0.00017145,2]
[402189366,1768579838491,-312.14812728,0.00017325,2]
[402189368,1768579838502,-1000.0,0.00017646,2]
[402189370,1768579838511,-1000.0,0.00017646,2]
[402189372,1768579838521,-1000.0,0.00017646,2]
[402189374,1768579838530,-2150.738,0.00017646,2]
[402189377,1768579838540,-335.0,0.00017872,2]
[402189379,1768579838550,-5725.51765122,0.00018162,2]
[402189381,1768579838560,-2230.315306,0.00018194,2]
[402189383,1768579838570,-286.74035999,0.00018252,2]
[402189385,1768579838580,-445.202766,0.00018252,2]
[402189387,1768579838590,-250.0,0.00018252,2]
[402189389,1768579838600,-250.0,0.00018252,2]
[402189391,1768579838609,-250.0,0.00018252,2]
[402189393,1768579838619,-250.0,0.00018252,2]
[402189395,1768579838628,-151.0,0.00018252,2]
[402189397,1768579838637,-250.0,0.00018252,2]
[402189399,1768579838646,-151.0,0.00018252,2]
[402189401,1768579838656,-221.64035363,0.00018262,2]
[402189403,1768579838665,-500.0,0.00018262,2]
[402189405,1768579838675,-500.0,0.00018262,2]
[402189407,1768579838685,-500.0,0.00018262,2]
[402189409,1768579838694,-500.0,0.00018262,2]
[402189411,1768579838703,-155.50062125,0.00018262,2]
[402189413,1768579838712,-500.0,0.00018262,2]
[402189415,1768579838722,-500.0,0.00018262,2]
[402189417,1768579838731,-500.0,0.00018262,2]
[402189419,1768579838742,-500.0,0.00018262,2]
[402189421,1768579838752,-532.82947033,0.00018262,2]
[402189423,1768579838763,-500.0,0.00018262,2]
[402189425,1768579838773,-500.0,0.00018262,2]
[402189428,1768579838783,-500.0,0.00018262,2]
[402189430,1768579838793,-517.81372836,0.00018262,2]
[402189432,1768579838803,-500.0,0.00018262,2]
[402189434,1768579838812,-500.0,0.00018262,2]
[402189436,1768579838822,-500.0,0.00018262,2]
[402189438,1768579838832,-500.0,0.00018262,2]
[402189440,1768579838846,-528.10957401,0.00018262,2]
[402189442,1768579838859,-500.0,0.00018262,2]
[402189444,1768579838869,-500.0,0.00018262,2]
[402189446,1768579838878,-246.10508172,0.00018262,2]
[402189448,1768579838890,-500.0,0.00018262,2]
[402189451,1768579838901,-500.0,0.00018262,2]
[402189453,1768579838911,-500.0,0.00018262,2]
[402189455,1768579838921,-500.0,0.00018262,2]
[402189457,1768579838931,-505.6589489,0.00018262,2]
[402189459,1768579838941,-500.0,0.00018262,2]
[402189461,1768579838951,-500.0,0.00018262,2]
[402189463,1768579838961,-500.0,0.00018262,2]
[402189465,1768579838971,-500.0,0.00018262,2]
[402189467,1768579838981,-500.0,0.00018262,2]
[402189469,1768579838991,-500.0,0.00018262,2]
[402189471,1768579839001,-500.0,0.00018262,2]
[402189473,1768579839011,-500.0,0.00018262,2]
[402189475,1768579839021,-500.0,0.00018262,2]
[402189477,1768579839031,-500.0,0.00018262,2]
[402189479,1768579839041,-500.0,0.00018262,2]
[402189481,1768579839051,-500.0,0.00018262,2]
[402189483,1768579839062,-500.0,0.00018262,2]
[402189485,1768579839072,-500.0,0.00018262,2]
[402189487,1768579839081,-500.0,0.00018262,2]
[402189489,1768579839091,-500.0,0.00018262,2]
[402189491,1768579839101,-500.0,0.00018262,2]
[402189494,1768579839111,-500.0,0.00018262,2]
[402189496,1768579839121,-500.0,0.00018262,2]
[402189498,1768579839131,-500.0,0.00018262,2]
[402189500,1768579839141,-500.0,0.00018262,2]
[402189502,1768579839151,-500.0,0.00018262,2]
[402189504,1768579839161,-500.0,0.00018262,2]
[402189506,1768579839170,-500.0,0.00018262,2]
[402189508,1768579839180,-500.0,0.00018262,2]
[402189510,1768579839190,-500.0,0.00018262,2]
[402189512,1768579839199,-500.0,0.00018262,2]
[402189514,1768579839209,-500.0,0.00018262,2]
[402189516,1768579839218,-500.0,0.00018262,2]
[402189518,1768579839228,-300.56589489,0.00018262,2]
[402189520,1768579839237,-78875.7224853,0.00018263,2]
[402189522,1768579839247,-497.65476094,0.00018559,2]
[402189524,1768579839258,-2312.83697232,0.00018742,2]
[402189526,1768579839268,-398.11523401,0.000188,2]
[402189528,1768579839278,-507.3243,0.00019178,2]
[402189530,1768579839288,-2398.4119403,0.0001929,2]
[402189532,1768579839297,-359.7639433,0.00019325,2]
[402189534,1768579839307,-209.0,0.00019342,3]
[402189536,1768579839316,-172.53,0.000194,2]
[402189538,1768579839326,-5725.51765118,0.00019467,2]
[402189540,1768579839335,-507.3243,0.00019589,3]
[402189542,1768579839345,-163.04,0.000198,2]
[402189544,1768579839354,-3236.06,0.000198,2]
[402189546,1768579839364,-2487.15318209,0.00019838,2]
[402189548,1768579839373,-1015.0,0.0002,2]
[402189550,1768579839383,-211.24420411,0.0002,2]
[402189552,1768579839391,-250.0,0.0002,10]
[402189554,1768579839400,-1929.0,0.0002,2]
[402189556,1768579839410,-250.0,0.000201,10]
[402189558,1768579839419,-497.65476094,0.00020194,2]
[402189560,1768579839428,-250.0,0.000202,10]
[402189562,1768579839438,-250.0,0.000203,10]
[402189564,1768579839447,-2147.0,0.0002031,2]
[402189566,1768579839456,-659.37,0.0002031,2]
[402189568,1768579839466,-763.628,0.0002031,2]
[402189570,1768579839475,-198.478,0.0002031,2]
[402189572,1768579839484,-417.0,0.0002031,2]
[402189573,1768579839493,-2579.17784983,0.00020386,2]
[402189574,1768579839504,-250.0,0.000204,10]
[402189575,1768579839513,-507.3213,0.00020411,5]
[402189576,1768579839523,-157.0,0.00020438,3]
[402189577,1768579839532,-250.0,0.000205,10]
[402189578,1768579839541,-250.0,0.000206,10]
[402189579,1768579839551,-250.0,0.000207,10]
[402189580,1768579839560,-250.0,0.000208,10]
[402189581,1768579839569,-172.53,0.000209,2]
[402189582,1768579839578,-250.0,0.000209,10]
[402189584,1768579839588,-2674.60743027,0.00020934,2]
[402189586,1768579839597,-3000.0,0.00021,2]
[402189587,1768579839606,-876.63,0.00021,7]
[402189588,1768579839616,-250.0,0.00021,10]
[402189589,1768579839625,-3000.0,0.0002101,2]
[402189590,1768579839634,-3000.0,0.0002102,2]
[402189591,1768579839644,-3000.0,0.0002103,2]
[402189592,1768579839654,-3000.0,0.0002104,2]
[402189593,1768579839663,-3000.0,0.0002105,2]
[402189595,1768579839673,-3000.0,0.0002106,2]
[402189596,1768579839682,-3000.0,0.0002107,2]
[402189597,1768579839691,-3000.0,0.0002108,2]
[402189598,1768579839701,-3000.0,0.0002109,2]
[402189599,1768579839710,-3000.0,0.000211,2]
[402189600,1768579839719,-250.0,0.000211,10]
[402189601,1768579839728,-3000.0,0.0002111,2]
[402189602,1768579839737,-3000.0,0.0002112,2]
[402189603,1768579839746,-3000.0,0.0002113,2]
[402189604,1768579839756,-3000.0,0.0002114,2]
[402189605,1768579839765,-3000.0,0.0002115,2]
[402189606,1768579839775,-3000.0,0.0002116,2]
[402189607,1768579839785,-3000.0,0.0002117,2]
[402189608,1768579839794,-3000.0,0.0002118,2]
[402189609,1768579839803,-3000.0,0.0002119,2]
[402189610,1768579839812,-163.04,0.000212,2]
[402189611,1768579839821,-3236.06,0.000212,2]
[402189612,1768579839830,-3000.0,0.000212,2]
[402189614,1768579839840,-3000.0,0.0002121,2]
[402189616,1768579839852,-3000.0,0.0002122,2]
[402189618,1768579839862,-3000.0,0.0002123,2]
[402189619,1768579839871,-3000.0,0.0002124,2]
[402189621,1768579839880,-3000.0,0.0002125,2]
[402189622,1768579839891,-3000.0,0.0002126,2]
[402189623,1768579839900,-3000.0,0.0002127,2]
[402189624,1768579839909,-3000.0,0.0002128,2]
[402189625,1768579839920,-3000.0,0.0002129,2]
[402189626,1768579839929,-3000.0,0.000213,2]
[402189627,1768579839939,-3000.0,0.0002131,2]
[402189628,1768579839948,-3000.0,0.0002132,2]
[402189629,1768579839958,-151.0,0.00021325,2]
[402189630,1768579839970,-407.37975933,0.00021325,2]
[402189631,1768579839979,-3000.0,0.0002133,2]
[402189632,1768579839988,-3000.0,0.0002134,2]
[402189633,1768579839997,-3000.0,0.0002135,2]
[402189634,1768579840006,-3000.0,0.0002136,2]
[402189635,1768579840015,-3000.0,0.0002137,2]
[402189636,1768579840025,-3000.0,0.0002138,2]
[402189637,1768579840034,-3000.0,0.0002139,2]
[402189638,1768579840043,-3000.0,0.000214,2]
[402189639,1768579840053,-3000.0,0.0002141,2]
[402189640,1768579840062,-3000.0,0.0002142,2]
[402189641,1768579840072,-894.870409,0.0002142,7]
[402189642,1768579840081,-4771.482473,0.0002143,2]
[402189643,1768579840091,-2773.56790519,0.00021482,2]
[402189644,1768579840100,-158.0,0.00021534,5]
[402189645,1768579840109,-743.124806,0.00021534,7]
[402189646,1768579840118,-206.202562,0.0002165,7]
[402189647,1768579840128,-824.810247,0.00021719,7]
[402189648,1768579840137,-497.65476094,0.00021828,2]
[402189649,1768579840146,-500.0,0.00021918,5]
[402189650,1768579840155,-1342.305614,0.00021918,30]
[402189651,1768579840164,-223.717602,0.00021918,30]
[402189652,1768579840174,-2876.18991768,0.0002203,2]
[402189653,1768579840183,-193.31,0.000221,7]
[402189654,1768579840192,-500.0,0.00022192,5]
[402189655,1768579840201,-185.781202,0.00022193,30]
[402189657,1768579840210,-151.0,0.00022193,2]
[402189658,1768579840220,-728.0,0.00022455,2]
[402189660,1768579840229,-500.0,0.00022466,5]
[402189662,1768579840239,-300.0,0.00022466,2]
[402189664,1768579840250,-250.0,0.00022466,2]
[402189666,1768579840260,-200.0,0.00022466,2]
[402189668,1768579840270,-2000.0,0.0002252,7]
[402189670,1768579840281,-3355.764035,0.0002252,30]
[402189672,1768579840290,-615.9872755,0.00022578,2]
[402189674,1768579840300,-160.0,0.0002263,7]
[402189676,1768579840310,-2000.0,0.00022734,7]
[402189678,1768579840319,-500.0,0.0002274,5]
[402189680,1768579840329,-2000.0,0.00022743,7]
[402189683,1768579840338,-2000.0,0.00022752,7]
[402189684,1768579840348,-2000.0,0.0002276,7]
[402189686,1768579840357,-2000.0,0.00022769,7]
[402189688,1768579840366,-2000.0,0.00022778,7]
[402189690,1768579840375,-2000.0,0.00022787,7]
[402189692,1768579840384,-2000.0,0.00022796,7]
[402189694,1768579840393,-2000.0,0.00022804,7]
[402189696,1768579840403,-2000.0,0.00022813,7]
[402189698,1768579840412,-2000.0,0.00022822,7]
[402189700,1768579840421,-2000.0,0.00022831,7]
[402189702,1768579840431,-2000.0,0.0002284,7]
[402189704,1768579840440,-2000.0,0.00022848,7]
[402189706,1768579840449,-2000.0,0.00022857,7]
[402189708,1768579840459,-2000.0,0.00022866,7]
[402189710,1768579840468,-2000.0,0.00022875,7]
[402189712,1768579840477,-2000.0,0.00022884,7]
[402189714,1768579840487,-2000.0,0.00022892,7]
[402189716,1768579840496,-2000.0,0.00022901,7]
[402189718,1768579840506,-2000.0,0.0002291,7]
[402189720,1768579840515,-500.0,0.00023014,5]
[402189722,1768579840524,-450.0,0.00023014,2]
[402189724,1768579840533,-350.0,0.00023014,2]
[402189726,1768579840543,-261.16480415,0.00023014,2]
[402189728,1768579840552,-151.0,0.0002306,2]
[402189730,1768579840562,-172.53,0.000231,7]
[402189732,1768579840571,-1000.0,0.000231,7]
[402189733,1768579840580,-500.0,0.00023288,5]
[402189734,1768579840588,-2147.0,0.0002331,2]
[402189735,1768579840597,-629.0,0.0002331,2]
[402189736,1768579840606,-715.0,0.0002331,2]
[402189737,1768579840615,-178.0,0.0002331,2]
[402189738,1768579840624,-417.0,0.0002331,2]
[402189739,1768579840633,-200.0,0.00023317,30]
[402189740,1768579840642,-200.0,0.00023317,30]
[402189741,1768579840652,-200.0,0.00023317,30]
[402189742,1768579840663,-454.99557536,0.00023325,2]
[402189743,1768579840676,-497.65476094,0.00023462,2]
[402189744,1768579840686,-193528.37802012,0.00023542,2]
[402189745,1768579841035,-5199.35744646,0.00023542,2]
[402189746,1768579841044,-500.0,0.00023562,5]
[402189747,1768579841054,-600.0,0.00023562,2]
[402189748,1768579841063,-473.17242877,0.00023562,2]
[402189749,1768579841072,-19685.63,0.000236,2]
[402189750,1768579841082,-160.0,0.00023726,11]
[402189751,1768579841091,-240.64536091,0.00023763,2]
[402189752,1768579841100,-228.20144067,0.00023781,30]
[402189753,1768579841110,-240.65,0.00023783,2]
[402189754,1768579841120,-500.0,0.00023836,5]
[402189755,1768579841130,-151.0,0.00023928,2]
[402189756,1768579841140,-481.754431,0.00024,7]
[402189757,1768579841149,-1041.66666667,0.00024,7]
[402189758,1768579841158,-728.0,0.00024067,3]
[402189759,1768579841168,-500.0,0.0002411,5]
[402189760,1768579841178,-750.0,0.0002411,2]
[402189761,1768579841189,-797.0,0.00024224,120]
[402189762,1768579841200,-478.0,0.00024224,120]
[402189763,1768579841210,-287.0,0.00024224,120]
[402189764,1768579841219,-172.0,0.00024224,120]
[402189765,1768579841228,-500.0,0.00024384,5]
[402189766,1768579841238,-30699.77020858,0.00024498,2]
[402189807,1768579841744,-1426.0,0.00023168,10]
[402189809,1768579841754,-628.0,0.00023168,10]
[402189811,1768579841764,-2364.46894878,0.00024498,2]
[402189979,1768580427934,676.96338025,0.0001,10]
[402190040,1768581032224,-312.02280587,0.0001027,2]
[402190042,1768581032233,-564.0,0.0001027,2]
[402190044,1768581032242,-300.0,0.00010399,2]
[402190046,1768581032251,-300.0,0.00010399,2]
[402190048,1768581032260,-1200.0,0.00010399,2]
[402190050,1768581032270,-945.47903558,0.000104,2]
[402190053,1768581032281,-0.67620029,0.000104,2]
[402190054,1768581032290,-500.0,0.000104,2]
[402190057,1768581032300,-500.0,0.000104,2]
[402190059,1768581032309,-113.84232268,0.000104,2]
[402190061,1768581032324,-386.15767732,0.000104,2]
[402190063,1768581032334,-500.0,0.000104,2]
[402190065,1768581032344,-500.0,0.000104,2]
[402190067,1768581032356,-500.0,0.000104,2]
[402190069,1768581032365,-500.0,0.000104,2]
[402190071,1768581032376,-500.0,0.000104,2]
[402190073,1768581032387,-500.0,0.000104,2]
[402190075,1768581032397,-500.0,0.000104,2]
[402190077,1768581032408,-669.1336869,0.000104,2]
[402190080,1768581032418,-2000.0,0.00010809,2]
[402190082,1768581032428,-2000.0,0.00010818,2]
[402190084,1768581032440,-2000.0,0.00010827,2]
[402190086,1768581032450,-2000.0,0.00010836,2]
[402190087,1768581032460,-2000.0,0.00010845,2]
[402190090,1768581032471,-2000.0,0.00010853,2]
[402190092,1768581032481,-2000.0,0.00010862,2]
[402190093,1768581032490,-2000.0,0.00010871,2]
[402190095,1768581032499,-2000.0,0.0001088,2]
[402190097,1768581032510,-2000.0,0.00010889,2]
[402190099,1768581032520,-2000.0,0.00010897,2]
[402190102,1768581032532,-2000.0,0.00010906,2]
[402190103,1768581032541,-2000.0,0.00010915,2]
[402190105,1768581032551,-2000.0,0.00010924,2]
[402190108,1768581032561,-2000.0,0.00010933,2]
[402190109,1768581032571,-2000.0,0.00010941,2]
[402190111,1768581032580,-2000.0,0.0001095,2]
[402190114,1768581032590,-2000.0,0.00010959,2]
[402190116,1768581032600,-420.0,0.00011434,2]
[402190117,1768581032609,-817.0,0.00011439,2]
[402190119,1768581032618,-368.18691093,0.0001227,2]
[402190121,1768581032627,-587.0,0.00012573,2]
[402190123,1768581032637,-4294.13823842,0.000129,2]
[402190126,1768581032647,-4294.13823838,0.000129,2]
[402190128,1768581032656,-500.0,0.00013273,2]
[402190130,1768581032665,-500.0,0.00013699,2]
[402190132,1768581032675,-500.0,0.00013699,2]
[402190134,1768581032684,-393.60441612,0.00013699,2]
[402190136,1768581032694,-309.09070392,0.00013699,2]
[402190138,1768581032703,-500.0,0.00013699,2]
[402190140,1768581032713,-500.0,0.00013699,2]
[402190142,1768581032723,-501.76923642,0.00013699,2]
[402190144,1768581032732,-500.0,0.00013699,2]
[402190146,1768581032742,-500.81645249,0.00013699,2]
[402190148,1768581032751,-500.58450182,0.00013699,2]
[402190150,1768581032760,-500.0,0.00013699,2]
[402190152,1768581032769,-500.0,0.00013699,2]
[402190154,1768581032778,-1000.0,0.00013821,2]
[402190156,1768581032787,-823.0,0.00013824,2]
[402190158,1768581032796,-500.0,0.00014246,2]
[402190160,1768581032805,-500.73467381,0.00014247,2]
[402190162,1768581032814,-500.74868029,0.00014247,2]
[402190164,1768581032824,-501.06220462,0.00014247,2]
[402190166,1768581032833,-306.53149665,0.00014247,2]
[402190168,1768581032842,-507.75160897,0.00014247,2]
[402190170,1768581032851,-501.53553318,0.00014247,2]
[402190172,1768581032860,-424.35101599,0.0001427,2]
[402190174,1768581032870,-1301.521298,0.00014337,2]
[402190176,1768581032879,-4294.13823838,0.0001497,2]
[402190178,1768581032888,-1152.0,0.00015201,2]
[402190179,1768581032897,-165.45639049,0.000154,2]
[402190181,1768581032906,-312.16070207,0.000154,2]
[402190183,1768581032914,-234.1928562,0.000154,2]
[402190185,1768581032923,-349.60453896,0.000154,2]
[402190187,1768581032933,-415.54264699,0.000154,2]
[402190189,1768581032942,-507.09690543,0.000154,2]
[402190191,1768581032951,-207.7713235,0.000154,2]
[402190193,1768581032961,-174.80226947,0.000154,2]
[402190195,1768581032970,-349.60453896,0.0001568,5]
[402190197,1768581032979,-500.0,0.00015748,2]
[402190199,1768581032988,-500.0,0.00015749,30]
[402190201,1768581032997,-500.0,0.00015749,30]
[402190203,1768581033007,-500.0,0.00015749,30]
[402190205,1768581033017,-500.0,0.00015749,30]
[402190208,1768581033030,-500.0,0.00015749,30]
[402190210,1768581033046,-500.0,0.00015749,30]
[402190211,1768581033055,-500.0,0.00015749,30]
[402190214,1768581033065,-500.0,0.00015749,30]
[402190216,1768581033075,-500.0,0.00015749,30]
[402190217,1768581033084,-500.0,0.00015749,30]
[402190219,1768581033094,-500.0,0.00015749,30]
[402190221,1768581033104,-591.12357233,0.00015749,30]
[402190224,1768581033114,-500.0,0.00015749,30]
[402190226,1768581033124,-901.82800973,0.00015749,30]
[402190228,1768581033134,-330.0,0.00015749,30]
[402190229,1768581033143,-500.0,0.00015749,30]
[402190231,1768581033153,-425.28129804,0.00015749,30]
[402190234,1768581033162,-178.14519074,0.00015749,30]
[402190235,1768581033172,-349.60453896,0.0001596,9]
[402190237,1768581033181,-507.09690543,0.0001598,9]
[402190239,1768581033191,-415.54264699,0.0001598,9]
[402190241,1768581033200,-349.60453896,0.0001624,13]
[402190243,1768581033210,-480.51512105,0.0001627,2]
[402190245,1768581033219,-349.60453896,0.0001652,16]
[402190247,1768581033228,-234.1928562,0.0001656,17]
[402190249,1768581033238,-312.16070207,0.0001656,17]
[402190251,1768581033248,-507.09690543,0.0001656,17]
[402190253,1768581033257,-415.54264699,0.0001656,17]
[402190255,1768581033266,-1001.0,0.00016714,2]
[402190257,1768581033276,-349.60453896,0.000168,20]
[402190258,1768581033286,-4294.13823838,0.00017043,2]
[402190259,1768581033295,-349.60453896,0.0001708,24]
[402190260,1768581033305,-507.09690543,0.00017141,25]
[402190261,1768581033313,-415.54264699,0.00017141,25]
[402190262,1768581033323,-1041.66666667,0.00017233,2]
[402190263,1768581033331,-564.36743167,0.00017311,2]
[402190264,1768581033340,-349.60453896,0.00017361,28]
[402190265,1768581033349,-349.60453896,0.00017641,31]
[402190266,1768581033358,-234.1928562,0.00017721,32]
[402190267,1768581033367,-312.16070207,0.00017721,32]
[402190268,1768581033376,-415.54264699,0.00017721,32]
[402190269,1768581033385,-507.09690543,0.00017721,32]
[402190270,1768581033394,-282.0,0.000178,2]
[402190271,1768581033403,-298.59285658,0.000179,2]
[402190272,1768581033412,-349.60453896,0.00017921,35]
[402190273,1768581033421,-500.0,0.00017988,2]
[402190274,1768581033431,-5000.0,0.00017989,2]
[402190275,1768581033443,-300.0,0.00018,2]
[402190276,1768581033452,-366.0,0.00018078,2]
[402190277,1768581033461,-349.60453896,0.00018201,39]
[402190278,1768581033471,-536.6792261,0.0001827,2]
[402190279,1768581033480,-507.09690543,0.00018301,40]
[402190280,1768581033489,-415.54264699,0.00018301,40]
[402190281,1768581033497,-349.60453896,0.00018481,42]
[402190282,1768581033507,-349.60453896,0.00018761,46]
[402190283,1768581033516,-298.59285656,0.00018879,2]
[402190284,1768581033525,-234.1928562,0.00018881,48]
[402190286,1768581033534,-312.16070207,0.00018881,48]
[402190288,1768581033543,-415.54264699,0.00018881,48]
[402190290,1768581033553,-507.09690543,0.00018881,48]
[402190292,1768581033562,-366.0,0.00018925,2]
[402190294,1768581033571,-300.0,0.00019,3]
[402190296,1768581033580,-349.60453896,0.00019041,50]
[402190298,1768581033589,-4294.13823838,0.00019117,2]
[402190300,1768581033598,-507.32,0.00019178,2]
[402190302,1768581033607,-170.56,0.000192,2]
[402190304,1768581033617,-161.91,0.000192,2]
[402190306,1768581033627,-3458.18,0.000192,2]
[402190308,1768581033637,-349.60453896,0.00019321,54]
[402190310,1768581033646,-192.0,0.0001937,3]
[402190312,1768581033655,-415.54264699,0.00019461,56]
[402190314,1768581033668,-507.09690543,0.00019461,56]
[402190316,1768581033678,-165.45639049,0.00019495,56]
[402190318,1768581033688,-22374.51,0.000195,2]
[402190320,1768581033697,-349.60453896,0.00019601,57]
[402190322,1768581033706,-366.0,0.00019772,2]
[402190324,1768581033715,-298.59285656,0.00019859,2]
[402190326,1768581033724,-349.60453896,0.00019881,61]
[402190328,1768581033733,-64001.2359,0.0002,2]
[402190330,1768581033742,-211.24420411,0.0002,2]
[402190332,1768581033751,-1015.0,0.0002,2]
[402190334,1768581033760,-1100.20017902,0.0002,2]
[402190336,1768581033769,-254.04884001,0.0002,21]
[402190338,1768581033779,-2009.86651923,0.0002,2]
[402190339,1768581033789,-312.16070207,0.00020041,63]
[402190341,1768581033798,-234.1928562,0.00020041,63]
[402190343,1768581033808,-415.54264699,0.00020041,63]
[402190345,1768581033817,-507.09690543,0.00020041,63]
[402190347,1768581033826,-349.60453896,0.00020161,65]
[402190349,1768581033836,-592.84333116,0.0002027,2]
[402190351,1768581033845,-349.60453896,0.00020441,69]
[402190354,1768581033854,-205.0,0.00020466,3]
[402190355,1768581033863,-161.91,0.000205,2]
[402190357,1768581033874,-3458.18,0.000205,2]
[402190359,1768581033883,-3832.21240652,0.0002058,2]
[402190361,1768581033892,-1905.04514587,0.0002058,2]
[402190363,1768581033901,-366.0,0.0002062,2]
[402190365,1768581033910,-415.54264699,0.00020622,71]
[402190367,1768581033919,-507.09690543,0.00020622,71]
[402190369,1768581033929,-349.60453896,0.00020722,72]
[402190371,1768581033938,-298.59285656,0.00020838,2]
[402190373,1768581033947,-300.0,0.00021,3]
[402190375,1768581033957,-481.57939059,0.00021,10]
[402190377,1768581033967,-876.63,0.00021,7]
[402190379,1768581033977,-189.068637,0.00021,7]
[402190381,1768581033987,-349.60453896,0.00021002,76]
[402190383,1768581033996,-4294.13823838,0.0002119,2]
[402190385,1768581034005,-234.1928562,0.00021202,79]
[402190388,1768581034015,-312.16070207,0.00021202,79]
[402190390,1768581034024,-415.54264699,0.00021202,79]
[402190391,1768581034034,-507.09690543,0.00021202,79]
[402190393,1768581034045,-349.60453896,0.00021282,80]
[402190395,1768581034055,-234.0,0.00021386,120]
[402190398,1768581034064,-371.0,0.00021386,120]
[402190400,1768581034074,-366.0,0.00021467,2]
[402190402,1768581034083,-22374.51,0.000215,2]
[402190404,1768581034093,-170.56,0.000215,2]
[402190405,1768581034102,-1301.521298,0.00021506,2]
[402190408,1768581034112,-349.60453896,0.00021562,83]
[402190410,1768581034122,-5000.0,0.00021586,2]
[402190411,1768581034131,-629.0,0.00021747,2]
[402190413,1768581034140,-2147.0,0.00021747,2]
[402190415,1768581034151,-417.0,0.00021747,2]
[402190417,1768581034161,-417.0,0.00021747,2]
[402190419,1768581034170,-715.0,0.00021747,2]
[402190421,1768581034179,-198.478,0.00021747,2]
[402190423,1768581034189,-415.54264699,0.00021782,86]
[402190425,1768581034198,-507.09690543,0.00021782,86]
[402190427,1768581034207,-161.91,0.000218,2]
[402190429,1768581034216,-3458.18,0.000218,2]
[402190431,1768581034225,-298.59285656,0.00021817,2]
[402190433,1768581034234,-349.60453896,0.00021842,87]
[402190435,1768581034244,-7738.84,0.000219,3]
[402190437,1768581034253,-500.0,0.00021917,3]
[402190439,1768581034263,-500.0,0.00021917,3]
[402190441,1768581034272,-500.0,0.00021917,3]
[402190443,1768581034281,-500.0,0.00021917,3]
[402190445,1768581034291,-500.0,0.00021917,3]
[402190447,1768581034300,-500.0,0.00021917,3]
[402190449,1768581034310,-500.0,0.00021917,3]
[402190451,1768581034319,-500.0,0.00021917,3]
[402190453,1768581034329,-1056.00064842,0.00021917,3]
[402190455,1768581034339,-500.0,0.00021917,3]
[402190457,1768581034348,-500.0,0.00021917,3]
[402190459,1768581034358,-531.91667453,0.00021917,3]
[402190461,1768581034367,-500.0,0.00021917,3]
[402190463,1768581034377,-500.0,0.00021917,3]
[402190465,1768581034387,-500.0,0.00021917,3]
[402190467,1768581034396,-500.0,0.00021917,3]
[402190469,1768581034405,-500.0,0.00021917,3]
[402190471,1768581034415,-500.0,0.00021917,3]
[402190473,1768581034424,-520.63,0.00021917,3]
[402190475,1768581034435,-500.0,0.00021917,3]
[402190477,1768581034446,-500.0,0.00021917,3]
[402190479,1768581034455,-500.0,0.00021917,3]